[Event "Titled Tuesday Blitz June 15 2021"]
[White "Spata, German"]
[Black "Bryakin, Mikhail"]
[WhiteFideId "113026"]
[BlackFideId "4165314"]
[WhiteElo "2238"]
[BlackElo "2409"]
[Result "1/2-1/2"]
[Round "05"]
[TimeControl "180+1"]
[Date "2021.06.15"]
[WhiteClock "0:00:08"]
[BlackClock "0:02:09"]

1. d4 {[%clk 0:02:58]}  g6 {[%clk 0:02:58]} 2. Nf3 {[%clk 0:02:57]}  Bg7 {[%clk 0:02:58]} 3. Bf4 {[%clk 0:02:56]}  d6 {[%clk 0:02:58]} 4. e3 {[%clk 0:02:56]}  Nf6 {[%clk 0:02:59]} 5. h3 {[%clk 0:02:56]}  O-O {[%clk 0:03:00]} 6. Be2 {[%clk 0:02:56]}  e6 {[%clk 0:03:00]} 7. O-O {[%clk 0:02:54]}  Qe7 {[%clk 0:03:01]} 8. c4 {[%clk 0:02:54]}  Nbd7 {[%clk 0:03:01]} 9. Bh2 {[%clk 0:02:54]}  b6 {[%clk 0:03:00]} 10. Nc3 {[%clk 0:02:52]}  Bb7 {[%clk 0:03:01]} 11. Rc1 {[%clk 0:02:44]}  Ne4 {[%clk 0:03:00]} 12. Nxe4 {[%clk 0:02:41]}  Bxe4 {[%clk 0:03:01]} 13. Nd2 {[%clk 0:02:41]}  Bb7 {[%clk 0:03:01]} 14. Bf3 {[%clk 0:02:40]}  Bxf3 {[%clk 0:02:58]} 15. Nxf3 {[%clk 0:02:35]}  e5 {[%clk 0:02:59]} 16. Qd2 {[%clk 0:02:01]}  e4 {[%clk 0:02:59]} 17. Ne1 {[%clk 0:01:59]}  f5 {[%clk 0:02:58]} 18. Nc2 {[%clk 0:01:54]}  Kh8 {[%clk 0:02:55]} 19. Nb4 {[%clk 0:01:53]}  Nf6 {[%clk 0:02:55]} 20. Nd5 {[%clk 0:01:49]}  Qd7 {[%clk 0:02:52]} 21. Nxf6 {[%clk 0:01:47]}  Rxf6 {[%clk 0:02:52]} 22. Rfd1 {[%clk 0:01:38]}  Re8 {[%clk 0:02:53]} 23. c5 {[%clk 0:01:35]}  dxc5 {[%clk 0:02:49]} 24. Be5 {[%clk 0:01:29]}  Rc6 {[%clk 0:02:47]} 25. Bxg7+ {[%clk 0:01:26]}  Kxg7 {[%clk 0:02:47]} 26. dxc5 {[%clk 0:01:26]}  Qxd2 {[%clk 0:02:48]} 27. Rxd2 {[%clk 0:01:25]}  Re7 {[%clk 0:02:49]} 28. Kf1 {[%clk 0:01:19]}  Kf6 {[%clk 0:02:49]} 29. Ke2 {[%clk 0:01:15]}  Ke5 {[%clk 0:02:49]} 30. Rdc2 {[%clk 0:01:14]}  b5 {[%clk 0:02:46]} 31. Rd2 {[%clk 0:01:12]}  a5 {[%clk 0:02:45]} 32. Rd8 {[%clk 0:01:08]}  Ra6 {[%clk 0:02:44]} 33. Rb8 {[%clk 0:01:04]}  c6 {[%clk 0:02:43]} 34. Rd8 {[%clk 0:01:01]}  Raa7 {[%clk 0:02:41]} 35. Rcd1 {[%clk 0:00:57]}  f4 {[%clk 0:02:37]} 36. R1d6 {[%clk 0:00:54]}  fxe3 {[%clk 0:02:37]} 37. fxe3 {[%clk 0:00:54]}  Rac7 {[%clk 0:02:36]} 38. Rf8 {[%clk 0:00:52]}  Re6 {[%clk 0:02:35]} 39. Rd4 {[%clk 0:00:45]}  a4 {[%clk 0:02:17]} 40. Rf4 {[%clk 0:00:44]}  Ree7 {[%clk 0:02:17]} 41. Rfxe4+ {[%clk 0:00:43]}  Kf6 {[%clk 0:02:17]} 42. Rd6+ {[%clk 0:00:36]}  Kf7 {[%clk 0:02:16]} 43. Rxe7+ {[%clk 0:00:36]}  Kxe7 {[%clk 0:02:17]} 44. e4 {[%clk 0:00:31]}  Kf7 {[%clk 0:02:17]} 45. Ke3 {[%clk 0:00:31]}  Ke7 {[%clk 0:02:17]} 46. g4 {[%clk 0:00:31]}  Rc8 {[%clk 0:02:18]} 47. e5 {[%clk 0:00:31]}  Rc7 {[%clk 0:02:17]} 48. h4 {[%clk 0:00:31]}  Rc8 {[%clk 0:02:17]} 49. h5 {[%clk 0:00:31]}  gxh5 {[%clk 0:02:17]} 50. gxh5 {[%clk 0:00:32]}  Rg8 {[%clk 0:02:16]} 51. Rxc6 {[%clk 0:00:32]}  Rg2 {[%clk 0:02:16]} 52. Rc7+ {[%clk 0:00:25]}  Ke6 {[%clk 0:02:16]} 53. Rxh7 {[%clk 0:00:24]}  Rxb2 {[%clk 0:02:16]} 54. Rb7 {[%clk 0:00:23]}  Kxe5 {[%clk 0:02:06]} 55. h6 {[%clk 0:00:16]}  Kd5 {[%clk 0:02:05]} 56. h7 {[%clk 0:00:14]}  Rh2 {[%clk 0:02:06]} 57. Rc7 {[%clk 0:00:10]}  b4 {[%clk 0:02:03]} 58. c6 {[%clk 0:00:10]}  Kd6 {[%clk 0:02:03]} 59. Rb7 {[%clk 0:00:08]}  Rh3+ {[%clk 0:02:03]} 60. Kd4 {[%clk 0:00:06]}  Rh4+ {[%clk 0:02:03]} 61. Kd3 {[%clk 0:00:06]}  Kxc6 {[%clk 0:02:02]} 62. Rxb4 {[%clk 0:00:06]}  Rh3+ {[%clk 0:02:00]} 63. Kc4 {[%clk 0:00:05]}  Rh4+ {[%clk 0:01:59]} 64. Kc3 {[%clk 0:00:05]}  Rh3+ {[%clk 0:02:00]} 65. Kc4 {[%clk 0:00:05]}  a3 {[%clk 0:02:00]} 66. Rb3 {[%clk 0:00:03]}  Rh4+ {[%clk 0:02:00]} 67. Kc3 {[%clk 0:00:04]}  Rxh7 {[%clk 0:01:59]} 68. Rxa3 {[%clk 0:00:04]}  Kb5 {[%clk 0:02:00]} 69. Rb3+ {[%clk 0:00:04]}  Kc5 {[%clk 0:02:01]} 70. Ra3 {[%clk 0:00:04]}  Rh2 {[%clk 0:02:02]} 71. Ra5+ {[%clk 0:00:03]}  Kb6 {[%clk 0:02:03]} 72. Ra3 {[%clk 0:00:03]}  Rh3+ {[%clk 0:02:03]} 73. Kb2 {[%clk 0:00:03]}  Rh4 {[%clk 0:02:04]} 74. Rb3+ {[%clk 0:00:03]}  Kc5 {[%clk 0:02:05]} 75. Rc3+ {[%clk 0:00:04]}  Kb4 {[%clk 0:02:06]} 76. Rb3+ {[%clk 0:00:05]}  Ka4 {[%clk 0:02:07]} 77. Ra3+ {[%clk 0:00:06]}  Kb4 {[%clk 0:02:08]} 78. Rb3+ {[%clk 0:00:06]}  Kc4 {[%clk 0:02:08]} 79. Rc3+ {[%clk 0:00:07]}  Kd4 {[%clk 0:02:09]} 80. Rc2 {[%clk 0:00:07]}  Rh8 {[%clk 0:02:09]} 81. a4 {[%clk 0:00:07]}  Rh3 {[%clk 0:02:07]} 82. a5 {[%clk 0:00:06]}  Kd5 {[%clk 0:02:07]} 83. Rc3 {[%clk 0:00:06]}  Rh2+ {[%clk 0:02:07]} 84. Kb3 {[%clk 0:00:07]}  Rh1 {[%clk 0:02:08]} 85. Kb4 {[%clk 0:00:07]}  Rb1+ {[%clk 0:02:08]} 86. Ka4 {[%clk 0:00:07]}  Ra1+ {[%clk 0:02:08]} 87. Kb5 {[%clk 0:00:07]}  Kd6 {[%clk 0:02:09]} 88. Kb6 {[%clk 0:00:06]}  Rb1+ {[%clk 0:02:09]} 89. Ka7 {[%clk 0:00:06]}  Kd7 {[%clk 0:02:10]} 90. a6 {[%clk 0:00:07]}  Ke8 {[%clk 0:02:11]} 91. Rc6 {[%clk 0:00:06]}  Kd7 {[%clk 0:02:06]} 92. Rc3 {[%clk 0:00:06]}  Rb4 {[%clk 0:02:05]} 93. Rc2 {[%clk 0:00:06]}  Rb3 {[%clk 0:02:05]} 94. Rc1 {[%clk 0:00:06]}  Rb2 {[%clk 0:02:06]} 95. Rc4 {[%clk 0:00:06]}  Rb5 {[%clk 0:02:06]} 96. Rc3 {[%clk 0:00:06]}  Rb4 {[%clk 0:02:07]} 97. Rc2 {[%clk 0:00:06]}  Rb1 {[%clk 0:02:07]} 98. Rh2 {[%clk 0:00:06]}  Kc7 {[%clk 0:02:07]} 99. Rh7+ {[%clk 0:00:06]}  Kc8 {[%clk 0:02:07]} 100. Rh8+ {[%clk 0:00:07]}  Kc7 {[%clk 0:02:08]} 101. Rh7+ {[%clk 0:00:07]}  Kc8 {[%clk 0:02:08]} 102. Rh8+ {[%clk 0:00:08]}  Kc7 {[%clk 0:02:09]} 103. Rh7+ {[%clk 0:00:08]} 1/2-1/2


[Site "https://www.chess.com"]

[Event "Titled Tuesday Blitz June 15 2021"]
[White "SpeedofLight0"]
[Black "Perez Ponsa, Federico"]
[BlackFideId "117927"]
[WhiteElo "2817"]
[BlackElo "2672"]
[Result "1-0"]
[Round "05"]
[TimeControl "180+1"]
[Date "2021.06.15"]
[WhiteClock "0:00:23"]
[BlackClock "0:00:08"]

1. e4 {[%clk 0:03:00]}  c5 {[%clk 0:03:00]} 2. Nf3 {[%clk 0:02:59]}  d6 {[%clk 0:03:00]} 3. Bb5+ {[%clk 0:02:57]}  Nd7 {[%clk 0:03:01]} 4. O-O {[%clk 0:02:56]}  a6 {[%clk 0:03:01]} 5. Bd3 {[%clk 0:02:55]}  Ngf6 {[%clk 0:03:01]} 6. c3 {[%clk 0:02:55]}  b5 {[%clk 0:03:01]} 7. Re1 {[%clk 0:02:51]}  Bb7 {[%clk 0:02:58]} 8. Bc2 {[%clk 0:02:50]}  c4 {[%clk 0:02:58]} 9. a4 {[%clk 0:02:50]}  e6 {[%clk 0:02:59]} 10. axb5 {[%clk 0:02:50]}  axb5 {[%clk 0:02:59]} 11. Rxa8 {[%clk 0:02:51]}  Qxa8 {[%clk 0:02:58]} 12. Na3 {[%clk 0:02:51]}  Be7 {[%clk 0:02:58]} 13. Nxb5 {[%clk 0:02:51]}  O-O {[%clk 0:02:59]} 14. Qe2 {[%clk 0:02:47]}  Rc8 {[%clk 0:02:57]} 15. Na3 {[%clk 0:02:25]}  Ba6 {[%clk 0:02:51]} 16. d4 {[%clk 0:02:14]}  cxd3 {[%clk 0:02:48]} 17. Bxd3 {[%clk 0:02:14]}  Bxd3 {[%clk 0:02:48]} 18. Qxd3 {[%clk 0:02:15]}  Nc5 {[%clk 0:02:49]} 19. Qc2 {[%clk 0:02:15]}  Ncxe4 {[%clk 0:02:45]} 20. Nb5 {[%clk 0:02:05]}  d5 {[%clk 0:02:42]} 21. Be3 {[%clk 0:02:02]}  Ng4 {[%clk 0:02:37]} 22. Bd4 {[%clk 0:01:59]}  Qb8 {[%clk 0:02:29]} 23. Qe2 {[%clk 0:01:50]}  Ng5 {[%clk 0:02:02]} 24. Ne5 {[%clk 0:01:43]}  Nxe5 {[%clk 0:01:49]} 25. Bxe5 {[%clk 0:01:44]}  Qb6 {[%clk 0:01:49]} 26. Bd4 {[%clk 0:01:41]}  Qb7 {[%clk 0:01:40]} 27. Ra1 {[%clk 0:01:31]}  Rb8 {[%clk 0:01:32]} 28. Be5 {[%clk 0:01:31]}  Qxb5 {[%clk 0:01:25]} 29. Qxb5 {[%clk 0:01:32]}  Rxb5 {[%clk 0:01:26]} 30. Ra8+ {[%clk 0:01:32]}  Bf8 {[%clk 0:01:26]} 31. Bd6 {[%clk 0:01:32]}  h5 {[%clk 0:01:24]} 32. Bxf8 {[%clk 0:01:16]}  Kh7 {[%clk 0:01:15]} 33. b4 {[%clk 0:01:16]}  Ne4 {[%clk 0:01:14]} 34. Rc8 {[%clk 0:01:15]}  Rb7 {[%clk 0:01:10]} 35. f3 {[%clk 0:01:12]}  Nd2 {[%clk 0:01:10]} 36. Bc5 {[%clk 0:01:08]}  Nc4 {[%clk 0:01:07]} 37. Kf2 {[%clk 0:01:06]}  Kg6 {[%clk 0:01:03]} 38. h4 {[%clk 0:01:01]}  f6 {[%clk 0:01:02]} 39. Ke2 {[%clk 0:00:58]}  Na3 {[%clk 0:01:01]} 40. Kd3 {[%clk 0:00:56]}  Kf5 {[%clk 0:00:57]} 41. Rh8 {[%clk 0:00:54]}  g6 {[%clk 0:00:53]} 42. Rf8 {[%clk 0:00:54]}  Nc4 {[%clk 0:00:49]} 43. Bd4 {[%clk 0:00:50]}  e5 {[%clk 0:00:47]} 44. Bc5 {[%clk 0:00:50]}  Nb2+ {[%clk 0:00:46]} 45. Kc2 {[%clk 0:00:46]}  Na4 {[%clk 0:00:47]} 46. Rd8 {[%clk 0:00:41]}  Kf4 {[%clk 0:00:30]} 47. Rxd5 {[%clk 0:00:38]}  Kg3 {[%clk 0:00:30]} 48. Rd6 {[%clk 0:00:36]}  g5 {[%clk 0:00:07]} 49. Rxf6 {[%clk 0:00:30]}  gxh4 {[%clk 0:00:07]} 50. Rg6+ {[%clk 0:00:29]}  Kh2 {[%clk 0:00:08]} 51. Bd6 {[%clk 0:00:28]}  Kg1 {[%clk 0:00:04]} 52. Bxe5 {[%clk 0:00:27]}  Re7 {[%clk 0:00:04]} 53. Bd4+ {[%clk 0:00:27]}  Kf1 {[%clk 0:00:04]} 54. Kb3 {[%clk 0:00:27]}  Re2 {[%clk 0:00:03]} 55. Kxa4 {[%clk 0:00:27]}  Rxg2 {[%clk 0:00:03]} 56. Rxg2 {[%clk 0:00:22]}  Kxg2 {[%clk 0:00:04]} 57. b5 {[%clk 0:00:23]}  h3 {[%clk 0:00:05]} 58. Be5 {[%clk 0:00:23]}  h4 {[%clk 0:00:02]} 59. b6 {[%clk 0:00:23]}  h2 {[%clk 0:00:03]} 60. Bxh2 {[%clk 0:00:23]}  Kxh2 {[%clk 0:00:04]} 61. b7 {[%clk 0:00:23]}  h3 {[%clk 0:00:05]} 62. b8=Q+ {[%clk 0:00:23]}  Kg2 {[%clk 0:00:06]} 63. Qh8 {[%clk 0:00:23]}  h2 {[%clk 0:00:07]} 64. c4 {[%clk 0:00:23]}  h1=Q {[%clk 0:00:07]} 65. Qxh1+ {[%clk 0:00:23]}  Kxh1 {[%clk 0:00:08]} 66. c5 {[%clk 0:00:23]} 1-0


[Site "https://www.chess.com"]

[Event "Titled Tuesday Blitz June 15 2021"]
[White "Starozhilov, Leonid"]
[Black "Suvorov, Luca"]
[WhiteFideId "14106752"]
[BlackFideId "12977071"]
[WhiteElo "2414"]
[BlackElo "2127"]
[Result "1-0"]
[Round "05"]
[TimeControl "180+1"]
[Date "2021.06.15"]
[WhiteClock "0:00:11"]
[BlackClock "0:00:02"]

1. e4 {[%clk 0:03:00]}  e5 {[%clk 0:02:59]} 2. Nf3 {[%clk 0:02:59]}  Nc6 {[%clk 0:03:00]} 3. Bb5 {[%clk 0:02:59]}  a6 {[%clk 0:03:00]} 4. Ba4 {[%clk 0:03:00]}  Nf6 {[%clk 0:03:00]} 5. d3 {[%clk 0:03:00]}  d6 {[%clk 0:02:59]} 6. c3 {[%clk 0:03:00]}  g6 {[%clk 0:02:58]} 7. Nbd2 {[%clk 0:02:59]}  Bg7 {[%clk 0:02:58]} 8. O-O {[%clk 0:03:00]}  O-O {[%clk 0:02:59]} 9. h3 {[%clk 0:02:58]}  b5 {[%clk 0:02:59]} 10. Bc2 {[%clk 0:02:57]}  Bb7 {[%clk 0:03:00]} 11. a4 {[%clk 0:02:57]}  Qe7 {[%clk 0:02:59]} 12. Re1 {[%clk 0:02:58]}  b4 {[%clk 0:02:57]} 13. Nf1 {[%clk 0:02:58]}  d5 {[%clk 0:02:54]} 14. Bg5 {[%clk 0:02:50]}  dxe4 {[%clk 0:02:53]} 15. dxe4 {[%clk 0:02:47]}  Rfd8 {[%clk 0:02:52]} 16. Qe2 {[%clk 0:02:47]}  h6 {[%clk 0:02:52]} 17. Bxf6 {[%clk 0:02:42]}  Qxf6 {[%clk 0:02:50]} 18. Ne3 {[%clk 0:02:43]}  bxc3 {[%clk 0:02:39]} 19. bxc3 {[%clk 0:02:41]}  Ne7 {[%clk 0:02:34]} 20. Bb3 {[%clk 0:02:28]}  Rab8 {[%clk 0:02:33]} 21. Rab1 {[%clk 0:02:27]}  h5 {[%clk 0:02:24]} 22. Qc4 {[%clk 0:02:05]}  Bc6 {[%clk 0:01:30]} 23. h4 {[%clk 0:01:59]}  Bh6 {[%clk 0:01:21]} 24. Ng5 {[%clk 0:01:55]}  Bxg5 {[%clk 0:01:18]} 25. hxg5 {[%clk 0:01:56]}  Qe6 {[%clk 0:01:18]} 26. Qxe6 {[%clk 0:01:30]}  fxe6 {[%clk 0:01:19]} 27. Nc4 {[%clk 0:01:23]}  Be8 {[%clk 0:00:38]} 28. Nxe5 {[%clk 0:01:20]}  Rb6 {[%clk 0:00:38]} 29. a5 {[%clk 0:01:15]}  Rbd6 {[%clk 0:00:38]} 30. Red1 {[%clk 0:01:08]}  Nc6 {[%clk 0:00:35]} 31. Nxc6 {[%clk 0:01:00]}  Bxc6 {[%clk 0:00:34]} 32. Rxd6 {[%clk 0:00:37]}  Rxd6 {[%clk 0:00:32]} 33. e5 {[%clk 0:00:38]}  Rd3 {[%clk 0:00:25]} 34. Bxe6+ {[%clk 0:00:38]}  Kf8 {[%clk 0:00:25]} 35. Rc1 {[%clk 0:00:32]}  Bb5 {[%clk 0:00:20]} 36. Kh2 {[%clk 0:00:27]}  Ke7 {[%clk 0:00:20]} 37. Bb3 {[%clk 0:00:22]}  Rd2 {[%clk 0:00:19]} 38. Kg3 {[%clk 0:00:21]}  Bd7 {[%clk 0:00:17]} 39. Rc2 {[%clk 0:00:13]}  Rd3+ {[%clk 0:00:17]} 40. f3 {[%clk 0:00:13]}  Bb5 {[%clk 0:00:15]} 41. Kf4 {[%clk 0:00:12]}  Kd7 {[%clk 0:00:10]} 42. Bf7 {[%clk 0:00:11]}  Rd2 {[%clk 0:00:02]} 43. Rxd2+ {[%clk 0:00:11]} 1-0


[Site "https://www.chess.com"]

[Event "Titled Tuesday Blitz June 15 2021"]
[White "Williams, Simon K"]
[Black "Nesterov, Arseniy"]
[WhiteFideId "404454"]
[BlackFideId "24198455"]
[WhiteElo "2468"]
[BlackElo "2441"]
[Result "1-0"]
[Round "05"]
[TimeControl "180+1"]
[Date "2021.06.15"]
[WhiteClock "0:00:47"]
[BlackClock "0:00:51"]

1. d4 {[%clk 0:03:00]}  d5 {[%clk 0:02:59]} 2. c4 {[%clk 0:02:55]}  e6 {[%clk 0:02:57]} 3. Nc3 {[%clk 0:02:55]}  c5 {[%clk 0:02:57]} 4. cxd5 {[%clk 0:02:55]}  exd5 {[%clk 0:02:58]} 5. e4 {[%clk 0:02:55]}  dxe4 {[%clk 0:02:54]} 6. Bb5+ {[%clk 0:02:49]}  Bd7 {[%clk 0:02:54]} 7. Bc4 {[%clk 0:02:49]}  Nf6 {[%clk 0:02:42]} 8. Qb3 {[%clk 0:02:44]}  Bd6 {[%clk 0:01:58]} 9. Bxf7+ {[%clk 0:02:43]}  Kf8 {[%clk 0:01:57]} 10. dxc5 {[%clk 0:02:41]}  Bxc5 {[%clk 0:01:57]} 11. Nge2 {[%clk 0:01:53]}  Nc6 {[%clk 0:01:52]} 12. Bd5 {[%clk 0:01:33]}  Nb4 {[%clk 0:01:29]} 13. Bxe4 {[%clk 0:01:03]}  Nxe4 {[%clk 0:01:03]} 14. Nxe4 {[%clk 0:01:03]}  Bf5 {[%clk 0:01:02]} 15. Nxc5 {[%clk 0:00:56]}  Qa5 {[%clk 0:00:51]} 16. Bd2 {[%clk 0:00:47]} 1-0


[Site "https://www.chess.com"]

[Event "Titled Tuesday Blitz June 15 2021"]
[White "Zhigalko, Sergei"]
[Black "Khanin, Semen"]
[WhiteFideId "13502956"]
[BlackFideId "4111990"]
[WhiteElo "2662"]
[BlackElo "2521"]
[Result "1-0"]
[Round "05"]
[TimeControl "180+1"]
[Date "2021.06.15"]
[WhiteClock "0:00:31"]
[BlackClock "0:00:08"]

1. e4 {[%clk 0:03:00]}  e5 {[%clk 0:02:59]} 2. Nf3 {[%clk 0:03:00]}  Nc6 {[%clk 0:02:59]} 3. Bc4 {[%clk 0:03:01]}  Bc5 {[%clk 0:02:59]} 4. b4 {[%clk 0:03:01]}  Bxb4 {[%clk 0:02:54]} 5. c3 {[%clk 0:03:02]}  Ba5 {[%clk 0:02:51]} 6. d4 {[%clk 0:03:02]}  d6 {[%clk 0:02:50]} 7. Qb3 {[%clk 0:03:00]}  Qd7 {[%clk 0:02:46]} 8. O-O {[%clk 0:02:57]}  Bb6 {[%clk 0:02:37]} 9. Nbd2 {[%clk 0:02:56]}  Nf6 {[%clk 0:02:34]} 10. dxe5 {[%clk 0:02:51]}  Nxe5 {[%clk 0:02:31]} 11. Nxe5 {[%clk 0:02:47]}  dxe5 {[%clk 0:02:31]} 12. Ba3 {[%clk 0:02:37]}  Ng4 {[%clk 0:01:27]} 13. Nf3 {[%clk 0:02:27]}  c6 {[%clk 0:00:26]} 14. Rad1 {[%clk 0:02:07]}  Qc7 {[%clk 0:00:27]} 15. Bd6 {[%clk 0:02:08]}  Qd7 {[%clk 0:00:27]} 16. Ba3 {[%clk 0:01:45]}  Qc7 {[%clk 0:00:25]} 17. Ng5 {[%clk 0:01:30]}  Nh6 {[%clk 0:00:19]} 18. Bd6 {[%clk 0:01:22]}  Qd7 {[%clk 0:00:10]} 19. Rd3 {[%clk 0:00:41]}  Bc7 {[%clk 0:00:09]} 20. Ba3 {[%clk 0:00:32]}  Qg4 {[%clk 0:00:08]} 21. Bxf7+ {[%clk 0:00:31]} 1-0


[Site "https://www.chess.com"]

[Event "Titled Tuesday Blitz June 15 2021"]
[White "Zhuravlev, Alexey"]
[Black "Willow, Jonah B"]
[WhiteFideId "4164199"]
[BlackFideId "438804"]
[WhiteElo "2455"]
[BlackElo "2261"]
[Result "0-1"]
[Round "05"]
[TimeControl "180+1"]
[Date "2021.06.15"]
[WhiteClock "0:00:10"]
[BlackClock "0:00:24"]

1. e4 {[%clk 0:03:00]}  c5 {[%clk 0:02:58]} 2. Nc3 {[%clk 0:03:00]}  Nc6 {[%clk 0:02:58]} 3. f4 {[%clk 0:03:00]}  g6 {[%clk 0:02:59]} 4. Nf3 {[%clk 0:03:00]}  Bg7 {[%clk 0:02:59]} 5. Bc4 {[%clk 0:03:01]}  e6 {[%clk 0:02:59]} 6. f5 {[%clk 0:03:02]}  Nge7 {[%clk 0:02:54]} 7. fxe6 {[%clk 0:03:02]}  dxe6 {[%clk 0:02:50]} 8. O-O {[%clk 0:03:03]}  O-O {[%clk 0:02:49]} 9. d3 {[%clk 0:03:03]}  Nd4 {[%clk 0:02:41]} 10. Bg5 {[%clk 0:02:48]}  Qc7 {[%clk 0:02:29]} 11. Nxd4 {[%clk 0:02:04]}  cxd4 {[%clk 0:02:23]} 12. Ne2 {[%clk 0:01:57]}  Nc6 {[%clk 0:02:17]} 13. Qd2 {[%clk 0:01:47]}  Na5 {[%clk 0:02:14]} 14. Bb3 {[%clk 0:01:38]}  e5 {[%clk 0:02:07]} 15. Bf6 {[%clk 0:01:29]}  Bg4 {[%clk 0:01:54]} 16. h3 {[%clk 0:01:24]}  Bxe2 {[%clk 0:01:51]} 17. Qxe2 {[%clk 0:01:24]}  Rac8 {[%clk 0:01:47]} 18. Qf3 {[%clk 0:01:10]}  Nxb3 {[%clk 0:01:44]} 19. cxb3 {[%clk 0:01:11]}  Qd6 {[%clk 0:01:35]} 20. Bxg7 {[%clk 0:01:09]}  Kxg7 {[%clk 0:01:36]} 21. Rac1 {[%clk 0:01:09]}  Rc6 {[%clk 0:01:29]} 22. Rc4 {[%clk 0:01:05]}  b5 {[%clk 0:01:27]} 23. Rxc6 {[%clk 0:01:01]}  Qxc6 {[%clk 0:01:28]} 24. Kh2 {[%clk 0:00:57]}  b4 {[%clk 0:01:22]} 25. Rf2 {[%clk 0:00:50]}  Qa6 {[%clk 0:01:21]} 26. a4 {[%clk 0:00:41]}  bxa3 {[%clk 0:01:16]} 27. bxa3 {[%clk 0:00:42]}  f6 {[%clk 0:01:07]} 28. a4 {[%clk 0:00:42]}  Rb8 {[%clk 0:01:07]} 29. Rc2 {[%clk 0:00:40]}  Qd6 {[%clk 0:01:02]} 30. Qg4 {[%clk 0:00:29]}  h5 {[%clk 0:01:01]} 31. Qd1 {[%clk 0:00:23]}  Rxb3 {[%clk 0:01:00]} 32. Rc7+ {[%clk 0:00:23]}  Qxc7 {[%clk 0:00:59]} 33. Qxb3 {[%clk 0:00:24]}  f5 {[%clk 0:00:56]} 34. Qd5 {[%clk 0:00:18]}  Kh6 {[%clk 0:00:41]} 35. h4 {[%clk 0:00:18]}  Qe7 {[%clk 0:00:39]} 36. Kh3 {[%clk 0:00:16]}  Kg7 {[%clk 0:00:36]} 37. a5 {[%clk 0:00:16]}  f4 {[%clk 0:00:28]} 38. a6 {[%clk 0:00:16]}  g5 {[%clk 0:00:29]} 39. hxg5 {[%clk 0:00:13]}  Qxg5 {[%clk 0:00:30]} 40. Kh2 {[%clk 0:00:12]}  Qg3+ {[%clk 0:00:26]} 41. Kh1 {[%clk 0:00:12]}  f3 {[%clk 0:00:27]} 42. Qd7+ {[%clk 0:00:11]}  Kh6 {[%clk 0:00:24]} 43. Qe6+ {[%clk 0:00:10]}  Qg6 {[%clk 0:00:24]} 0-1


[Site "https://www.chess.com"]

[Event "Titled Tuesday Blitz June 15 2021"]
[White "Zubov, Alexander"]
[Black "Tristan, Leonardo"]
[WhiteFideId "14109409"]
[BlackFideId "113816"]
[WhiteElo "2740"]
[BlackElo "2404"]
[Result "1-0"]
[Round "05"]
[TimeControl "180+1"]
[Date "2021.06.15"]
[WhiteClock "0:00:13"]
[BlackClock "0:00:03"]

1. c4 {[%clk 0:02:56]}  e6 {[%clk 0:01:09]} 2. d4 {[%clk 0:02:53]}  d5 {[%clk 0:01:09]} 3. Nc3 {[%clk 0:02:53]}  a6 {[%clk 0:01:10]} 4. cxd5 {[%clk 0:02:53]}  exd5 {[%clk 0:01:11]} 5. Nf3 {[%clk 0:02:52]}  Nf6 {[%clk 0:01:11]} 6. Bf4 {[%clk 0:02:53]}  c5 {[%clk 0:01:11]} 7. e3 {[%clk 0:02:53]}  c4 {[%clk 0:01:11]} 8. Bg5 {[%clk 0:02:43]}  Be7 {[%clk 0:01:09]} 9. g3 {[%clk 0:02:40]}  O-O {[%clk 0:01:09]} 10. Bg2 {[%clk 0:02:39]}  Nc6 {[%clk 0:01:06]} 11. O-O {[%clk 0:02:29]}  Be6 {[%clk 0:01:01]} 12. Ne5 {[%clk 0:02:17]}  h6 {[%clk 0:00:59]} 13. Bxf6 {[%clk 0:02:14]}  Bxf6 {[%clk 0:01:00]} 14. Nxc6 {[%clk 0:02:14]}  bxc6 {[%clk 0:01:00]} 15. Na4 {[%clk 0:02:13]}  Be7 {[%clk 0:00:59]} 16. b3 {[%clk 0:02:12]}  Rc8 {[%clk 0:00:47]} 17. bxc4 {[%clk 0:01:53]}  dxc4 {[%clk 0:00:48]} 18. Qc2 {[%clk 0:01:51]}  Qa5 {[%clk 0:00:48]} 19. Rfd1 {[%clk 0:01:37]}  Rfd8 {[%clk 0:00:47]} 20. Nc3 {[%clk 0:01:29]}  Bb4 {[%clk 0:00:44]} 21. Rac1 {[%clk 0:01:27]}  Ba3 {[%clk 0:00:44]} 22. Rb1 {[%clk 0:01:27]}  Bb4 {[%clk 0:00:38]} 23. Ne4 {[%clk 0:01:22]}  Bd5 {[%clk 0:00:34]} 24. Nd2 {[%clk 0:01:08]}  c3 {[%clk 0:00:31]} 25. Nb3 {[%clk 0:01:06]}  Qa4 {[%clk 0:00:31]} 26. e4 {[%clk 0:00:57]}  Bc4 {[%clk 0:00:32]} 27. e5 {[%clk 0:00:56]}  Bd5 {[%clk 0:00:30]} 28. h4 {[%clk 0:00:53]}  a5 {[%clk 0:00:29]} 29. h5 {[%clk 0:00:46]}  Qb5 {[%clk 0:00:29]} 30. Nc5 {[%clk 0:00:43]}  Qc4 {[%clk 0:00:26]} 31. Bxd5 {[%clk 0:00:40]}  cxd5 {[%clk 0:00:24]} 32. Na4 {[%clk 0:00:40]}  Qc6 {[%clk 0:00:20]} 33. Rd3 {[%clk 0:00:38]}  Qe6 {[%clk 0:00:17]} 34. Rc1 {[%clk 0:00:35]}  Qf5 {[%clk 0:00:16]} 35. Qe2 {[%clk 0:00:34]}  f6 {[%clk 0:00:13]} 36. e6 {[%clk 0:00:32]}  Re8 {[%clk 0:00:13]} 37. Re3 {[%clk 0:00:32]}  Rc6 {[%clk 0:00:12]} 38. e7 {[%clk 0:00:31]}  Rc7 {[%clk 0:00:12]} 39. Nxc3 {[%clk 0:00:30]}  Rcxe7 {[%clk 0:00:12]} 40. Rxe7 {[%clk 0:00:30]}  Rxe7 {[%clk 0:00:13]} 41. Qd1 {[%clk 0:00:29]}  Rc7 {[%clk 0:00:09]} 42. Nb5 {[%clk 0:00:20]}  Rxc1 {[%clk 0:00:08]} 43. Qxc1 {[%clk 0:00:21]}  Qxh5 {[%clk 0:00:08]} 44. Nc7 {[%clk 0:00:21]}  Qf3 {[%clk 0:00:07]} 45. Qc6 {[%clk 0:00:19]}  Qd1+ {[%clk 0:00:06]} 46. Kg2 {[%clk 0:00:19]}  Qxd4 {[%clk 0:00:07]} 47. Nxd5 {[%clk 0:00:19]}  Qe4+ {[%clk 0:00:06]} 48. Kh2 {[%clk 0:00:20]}  Qe2 {[%clk 0:00:04]} 49. Qc8+ {[%clk 0:00:19]}  Kh7 {[%clk 0:00:04]} 50. Qf5+ {[%clk 0:00:19]}  Kg8 {[%clk 0:00:05]} 51. Qc8+ {[%clk 0:00:19]}  Kh7 {[%clk 0:00:06]} 52. Qf5+ {[%clk 0:00:18]}  Kg8 {[%clk 0:00:06]} 53. Kg2 {[%clk 0:00:19]}  Qe8 {[%clk 0:00:04]} 54. Qf3 {[%clk 0:00:17]}  Qf7 {[%clk 0:00:03]} 55. Qb3 {[%clk 0:00:17]}  Kh7 {[%clk 0:00:01]} 56. Qc4 {[%clk 0:00:14]}  Bf8 {[%clk 0:00:02]} 57. a4 {[%clk 0:00:13]}  Qb7 {[%clk 0:00:02]} 58. Qe4+ {[%clk 0:00:13]}  Kg8 {[%clk 0:00:03]} 59. Nxf6+ {[%clk 0:00:13]} 1-0


[Site "https://www.chess.com"]